[Event "Titled Tuesday Blitz February 15 Late 2022"]
[White "Dias, Joao Batista"]
[Black "Namitbir Singh Walia"]
[WhiteFideId "2108240"]
[BlackFideId "35071068"]
[WhiteElo "1898"]
[BlackElo "1479"]
[Result "0-1"]
[Round "11"]
[TimeControl "180+1"]
[Date "2022.02.16"]
[WhiteClock "0:01:22"]
[BlackClock "0:01:18"]

1. e4 {[%clk 0:03:00]}  c5 {[%clk 0:02:59]} 2. Nf3 {[%clk 0:02:59]}  Nc6 {[%clk 0:03:00]} 3. d4 {[%clk 0:02:59]}  cxd4 {[%clk 0:03:01]} 4. Nxd4 {[%clk 0:02:59]}  g6 {[%clk 0:03:01]} 5. Nxc6 {[%clk 0:02:57]}  bxc6 {[%clk 0:03:02]} 6. Qd4 {[%clk 0:02:57]}  Nf6 {[%clk 0:02:58]} 7. e5 {[%clk 0:02:57]}  Nd5 {[%clk 0:02:47]} 8. e6 {[%clk 0:02:57]}  f6 {[%clk 0:02:47]} 9. exd7+ {[%clk 0:02:57]}  Bxd7 {[%clk 0:02:46]} 10. c4 {[%clk 0:02:56]}  e5 {[%clk 0:02:46]} 11. Qd1 {[%clk 0:02:51]}  Bb4+ {[%clk 0:02:35]} 12. Bd2 {[%clk 0:02:51]}  Bxd2+ {[%clk 0:02:35]} 13. Nxd2 {[%clk 0:02:51]}  Nf4 {[%clk 0:02:35]} 14. Ne4 {[%clk 0:02:44]}  O-O {[%clk 0:02:31]} 15. g3 {[%clk 0:02:43]}  Ne6 {[%clk 0:02:24]} 16. Bg2 {[%clk 0:02:38]}  Rb8 {[%clk 0:02:21]} 17. b3 {[%clk 0:02:36]}  Qa5+ {[%clk 0:02:10]} 18. Qd2 {[%clk 0:02:33]}  Qxd2+ {[%clk 0:02:09]} 19. Kxd2 {[%clk 0:02:33]}  Rfd8 {[%clk 0:02:08]} 20. Kc3 {[%clk 0:02:33]}  Nd4 {[%clk 0:02:07]} 21. Rhe1 {[%clk 0:02:25]}  Kf7 {[%clk 0:02:03]} 22. f4 {[%clk 0:02:19]}  Bg4 {[%clk 0:01:55]} 23. fxe5 {[%clk 0:02:18]}  fxe5 {[%clk 0:01:47]} 24. Ng5+ {[%clk 0:02:06]}  Kf6 {[%clk 0:01:43]} 25. Ne4+ {[%clk 0:02:05]}  Kg7 {[%clk 0:01:41]} 26. Nf2 {[%clk 0:02:02]}  Bf3 {[%clk 0:01:33]} 27. Bxf3 {[%clk 0:01:55]}  Nxf3 {[%clk 0:01:33]} 28. Re3 {[%clk 0:01:55]}  Rf8 {[%clk 0:01:32]} 29. Rd1 {[%clk 0:01:53]}  Nxh2 {[%clk 0:01:27]} 30. Nh3 {[%clk 0:01:43]}  Ng4 {[%clk 0:01:24]} 31. Re4 {[%clk 0:01:40]}  h5 {[%clk 0:01:23]} 32. Rd7+ {[%clk 0:01:39]}  Kh6 {[%clk 0:01:22]} 33. Rxa7 {[%clk 0:01:29]}  Rf3+ {[%clk 0:01:22]} 34. Kb2 {[%clk 0:01:28]}  Rxg3 {[%clk 0:01:20]} 35. Nf2 {[%clk 0:01:22]}  Nxf2 {[%clk 0:01:18]} 36. Rxe5 {[%clk 0:01:22]}  Nd3+ {[%clk 0:01:18]} 0-1


[Site "https://www.chess.com"]

[Event "Titled Tuesday Blitz February 15 Late 2022"]
[White "Fishbein, Alexander"]
[Black "Foisor, Sabina-Francesca"]
[WhiteFideId "2000377"]
[BlackFideId "1212915"]
[WhiteElo "2442"]
[BlackElo "2243"]
[Result "1-0"]
[Round "11"]
[TimeControl "180+1"]
[Date "2022.02.15"]
[WhiteClock "0:00:14"]
[BlackClock "0:00:15"]

1. e4 {[%clk 0:03:00]}  c6 {[%clk 0:02:56]} 2. d4 {[%clk 0:02:58]}  g6 {[%clk 0:02:55]} 3. Nc3 {[%clk 0:02:56]}  d5 {[%clk 0:02:54]} 4. h3 {[%clk 0:02:56]}  Bg7 {[%clk 0:02:53]} 5. Nf3 {[%clk 0:02:56]}  Nf6 {[%clk 0:02:52]} 6. e5 {[%clk 0:02:54]}  Ne4 {[%clk 0:02:52]} 7. Bd3 {[%clk 0:02:50]}  Nxc3 {[%clk 0:02:51]} 8. bxc3 {[%clk 0:02:51]}  c5 {[%clk 0:02:50]} 9. dxc5 {[%clk 0:02:40]}  Nc6 {[%clk 0:02:44]} 10. Bf4 {[%clk 0:02:38]}  O-O {[%clk 0:02:38]} 11. O-O {[%clk 0:02:37]}  Qa5 {[%clk 0:02:35]} 12. Re1 {[%clk 0:02:24]}  Qxc3 {[%clk 0:02:25]} 13. Qc1 {[%clk 0:02:09]}  Qxc5 {[%clk 0:02:20]} 14. Bh6 {[%clk 0:02:07]}  Nd4 {[%clk 0:02:07]} 15. Nxd4 {[%clk 0:02:01]}  Qxd4 {[%clk 0:02:08]} 16. Bxg7 {[%clk 0:01:51]}  Kxg7 {[%clk 0:02:09]} 17. Qg5 {[%clk 0:01:48]}  Qc5 {[%clk 0:01:26]} 18. h4 {[%clk 0:01:43]}  h6 {[%clk 0:01:24]} 19. Qg3 {[%clk 0:01:41]}  h5 {[%clk 0:01:23]} 20. e6 {[%clk 0:01:35]}  Qd6 {[%clk 0:01:10]} 21. Qxd6 {[%clk 0:01:34]}  exd6 {[%clk 0:01:11]} 22. e7 {[%clk 0:01:35]}  Re8 {[%clk 0:01:10]} 23. Bb5 {[%clk 0:01:35]}  Be6 {[%clk 0:01:10]} 24. Bxe8 {[%clk 0:01:35]}  Rxe8 {[%clk 0:01:11]} 25. Rab1 {[%clk 0:01:26]}  Rxe7 {[%clk 0:01:10]} 26. Rb4 {[%clk 0:01:23]}  Rc7 {[%clk 0:01:10]} 27. Re2 {[%clk 0:01:17]}  Kf6 {[%clk 0:01:06]} 28. f3 {[%clk 0:01:15]}  Bf5 {[%clk 0:01:03]} 29. Rb5 {[%clk 0:01:03]}  d4 {[%clk 0:00:55]} 30. Rd5 {[%clk 0:01:01]}  Rc6 {[%clk 0:00:42]} 31. Rxd4 {[%clk 0:00:59]}  Be6 {[%clk 0:00:43]} 32. a4 {[%clk 0:00:52]}  Bc4 {[%clk 0:00:34]} 33. Red2 {[%clk 0:00:50]}  d5 {[%clk 0:00:34]} 34. Kf2 {[%clk 0:00:41]}  Ra6 {[%clk 0:00:34]} 35. Rf4+ {[%clk 0:00:41]}  Ke6 {[%clk 0:00:32]} 36. Rd1 {[%clk 0:00:39]}  f6 {[%clk 0:00:27]} 37. Re1+ {[%clk 0:00:38]}  Kf7 {[%clk 0:00:27]} 38. g4 {[%clk 0:00:29]}  Rxa4 {[%clk 0:00:27]} 39. gxh5 {[%clk 0:00:23]}  gxh5 {[%clk 0:00:28]} 40. Re5 {[%clk 0:00:20]}  Ra2 {[%clk 0:00:23]} 41. Rxh5 {[%clk 0:00:20]}  Rxc2+ {[%clk 0:00:24]} 42. Kg3 {[%clk 0:00:20]}  Kg6 {[%clk 0:00:19]} 43. Rh8 {[%clk 0:00:19]}  b5 {[%clk 0:00:19]} 44. h5+ {[%clk 0:00:16]}  Kg7 {[%clk 0:00:19]} 45. Rb8 {[%clk 0:00:16]}  a5 {[%clk 0:00:18]} 46. Rg4+ {[%clk 0:00:16]}  Kf7 {[%clk 0:00:18]} 47. h6 {[%clk 0:00:15]}  Bd3 {[%clk 0:00:18]} 48. Rg7+ {[%clk 0:00:14]}  Ke6 {[%clk 0:00:17]} 49. h7 {[%clk 0:00:15]}  Bxh7 {[%clk 0:00:17]} 50. Rxh7 {[%clk 0:00:15]}  b4 {[%clk 0:00:17]} 51. Ra7 {[%clk 0:00:15]}  Ra2 {[%clk 0:00:16]} 52. Rxb4 {[%clk 0:00:14]}  axb4 {[%clk 0:00:15]} 53. Rxa2 {[%clk 0:00:14]}  Kd6 {[%clk 0:00:15]} 54. Kf4 {[%clk 0:00:14]}  Kc5 {[%clk 0:00:15]} 55. Ke3 {[%clk 0:00:14]}  Kc4 {[%clk 0:00:14]} 56. Ra8 {[%clk 0:00:15]}  Kc3 {[%clk 0:00:14]} 57. Rc8+ {[%clk 0:00:14]}  Kb2 {[%clk 0:00:13]} 58. Kd4 {[%clk 0:00:14]}  b3 {[%clk 0:00:14]} 59. Kxd5 {[%clk 0:00:14]}  Kb1 {[%clk 0:00:13]} 60. Ke6 {[%clk 0:00:14]}  b2 {[%clk 0:00:13]} 61. Rb8 {[%clk 0:00:14]}  Kc2 {[%clk 0:00:14]} 62. Kxf6 {[%clk 0:00:14]}  b1=Q {[%clk 0:00:14]} 63. Rxb1 {[%clk 0:00:13]}  Kxb1 {[%clk 0:00:15]} 64. f4 {[%clk 0:00:14]} 1-0


[Site "https://www.chess.com"]

[Event "Titled Tuesday Blitz February 15 Late 2022"]
[White "Gatterer, Florian"]
[Black "Levine, Joseph"]
[WhiteFideId "811688"]
[BlackFideId "30940346"]
[WhiteElo "2218"]
[BlackElo "1802"]
[Result "1/2-1/2"]
[Round "11"]
[TimeControl "180+1"]
[Date "2022.02.16"]
[WhiteClock "0:00:09"]
[BlackClock "0:00:08"]

1. Nf3 {[%clk 0:03:00]}  d5 {[%clk 0:02:59]} 2. e3 {[%clk 0:02:56]}  Nf6 {[%clk 0:02:59]} 3. c4 {[%clk 0:02:56]}  e6 {[%clk 0:02:59]} 4. Nc3 {[%clk 0:02:56]}  c5 {[%clk 0:02:59]} 5. cxd5 {[%clk 0:02:55]}  exd5 {[%clk 0:02:59]} 6. d4 {[%clk 0:02:55]}  Nc6 {[%clk 0:02:59]} 7. Bb5 {[%clk 0:02:55]}  Bd7 {[%clk 0:02:59]} 8. O-O {[%clk 0:02:54]}  a6 {[%clk 0:02:59]} 9. Be2 {[%clk 0:02:52]}  Rc8 {[%clk 0:02:59]} 10. h3 {[%clk 0:02:45]}  cxd4 {[%clk 0:02:52]} 11. Nxd4 {[%clk 0:02:44]}  Bd6 {[%clk 0:02:53]} 12. Nxc6 {[%clk 0:02:40]}  Bxc6 {[%clk 0:02:52]} 13. b3 {[%clk 0:02:37]}  Qe7 {[%clk 0:02:51]} 14. Bb2 {[%clk 0:02:28]}  O-O {[%clk 0:02:48]} 15. Rc1 {[%clk 0:02:20]}  Rfd8 {[%clk 0:02:45]} 16. Bf3 {[%clk 0:02:18]}  Qe5 {[%clk 0:02:38]} 17. g3 {[%clk 0:02:17]}  Qf5 {[%clk 0:02:38]} 18. Bg2 {[%clk 0:02:13]}  h5 {[%clk 0:02:33]} 19. Ne2 {[%clk 0:02:09]}  Bb8 {[%clk 0:02:13]} 20. Nd4 {[%clk 0:02:02]}  Qg6 {[%clk 0:02:03]} 21. Qc2 {[%clk 0:01:45]}  Ne4 {[%clk 0:01:47]} 22. Bxe4 {[%clk 0:01:33]}  dxe4 {[%clk 0:01:45]} 23. Nxc6 {[%clk 0:01:17]}  Rxc6 {[%clk 0:01:44]} 24. Qe2 {[%clk 0:01:07]}  h4 {[%clk 0:01:36]} 25. Rxc6 {[%clk 0:00:59]}  Qxc6 {[%clk 0:01:27]} 26. Qg4 {[%clk 0:00:40]}  f6 {[%clk 0:01:01]} 27. Qxh4 {[%clk 0:00:37]}  Rd2 {[%clk 0:00:52]} 28. Bd4 {[%clk 0:00:27]}  Rxa2 {[%clk 0:00:49]} 29. Qg4 {[%clk 0:00:23]}  Rc2 {[%clk 0:00:43]} 30. h4 {[%clk 0:00:23]}  Kf7 {[%clk 0:00:28]} 31. h5 {[%clk 0:00:22]}  Be5 {[%clk 0:00:12]} 32. Qg6+ {[%clk 0:00:20]}  Kf8 {[%clk 0:00:12]} 33. Bxe5 {[%clk 0:00:20]}  fxe5 {[%clk 0:00:13]} 34. Qf5+ {[%clk 0:00:14]}  Kg8 {[%clk 0:00:11]} 35. Qxe5 {[%clk 0:00:14]}  Rc5 {[%clk 0:00:10]} 36. Qf4 {[%clk 0:00:12]}  Rxh5 {[%clk 0:00:09]} 37. Rd1 {[%clk 0:00:12]}  Rd5 {[%clk 0:00:07]} 38. Rxd5 {[%clk 0:00:10]}  Qxd5 {[%clk 0:00:08]} 39. Qb8+ {[%clk 0:00:10]}  Kh7 {[%clk 0:00:08]} 40. Qe8 {[%clk 0:00:11]}  Qxb3 {[%clk 0:00:06]} 41. Qh5+ {[%clk 0:00:09]}  Kg8 {[%clk 0:00:06]} 42. Qe8+ {[%clk 0:00:09]}  Kh7 {[%clk 0:00:07]} 43. Qh5+ {[%clk 0:00:09]}  Kg8 {[%clk 0:00:07]} 44. Qe8+ {[%clk 0:00:09]}  Kh7 {[%clk 0:00:08]} 1/2-1/2


[Site "https://www.chess.com"]

[Event "Titled Tuesday Blitz February 15 Late 2022"]
[White "Goryachkina, Aleksandra"]
[Black "Hess, Robert"]
[WhiteFideId "4147103"]
[BlackFideId "2022036"]
[WhiteElo "2426"]
[BlackElo "2557"]
[Result "0-1"]
[Round "11"]
[TimeControl "180+1"]
[Date "2022.02.15"]
[WhiteClock "0:00:01"]
[BlackClock "0:00:17"]

1. e4 {[%clk 0:02:59]}  g6 {[%clk 0:02:59]} 2. d4 {[%clk 0:02:58]}  Bg7 {[%clk 0:02:53]} 3. Nc3 {[%clk 0:02:58]}  a6 {[%clk 0:02:53]} 4. a4 {[%clk 0:02:56]}  d6 {[%clk 0:02:53]} 5. Be3 {[%clk 0:02:56]}  e6 {[%clk 0:02:53]} 6. Qd2 {[%clk 0:02:51]}  h6 {[%clk 0:02:53]} 7. Bd3 {[%clk 0:02:41]}  Nd7 {[%clk 0:02:54]} 8. h4 {[%clk 0:02:39]}  b6 {[%clk 0:02:53]} 9. Nge2 {[%clk 0:02:37]}  Bb7 {[%clk 0:02:52]} 10. h5 {[%clk 0:02:33]}  g5 {[%clk 0:02:53]} 11. f4 {[%clk 0:02:32]}  gxf4 {[%clk 0:02:52]} 12. Nxf4 {[%clk 0:02:28]}  Ngf6 {[%clk 0:02:52]} 13. O-O-O {[%clk 0:02:22]}  b5 {[%clk 0:02:47]} 14. Qe1 {[%clk 0:02:05]}  b4 {[%clk 0:02:42]} 15. Na2 {[%clk 0:02:03]}  Bxe4 {[%clk 0:01:59]} 16. Bxe4 {[%clk 0:01:55]}  Nxe4 {[%clk 0:02:00]} 17. Nxb4 {[%clk 0:01:55]}  Qb8 {[%clk 0:01:39]} 18. Nbd3 {[%clk 0:01:46]}  Qb7 {[%clk 0:01:32]} 19. Rh3 {[%clk 0:01:25]}  Rb8 {[%clk 0:01:20]} 20. Bg1 {[%clk 0:00:46]}  c5 {[%clk 0:01:09]} 21. Re3 {[%clk 0:00:41]}  d5 {[%clk 0:01:09]} 22. b3 {[%clk 0:00:16]}  cxd4 {[%clk 0:00:52]} 23. Rf3 {[%clk 0:00:14]}  Qc6 {[%clk 0:00:41]} 24. Ne2 {[%clk 0:00:03]}  e5 {[%clk 0:00:22]} 25. Nxe5 {[%clk 0:00:01]}  Bxe5 {[%clk 0:00:17]} 26. Nxd4 {[%clk 0:00:01]}  Qd6 {[%clk 0:00:17]} 0-1


[Site "https://www.chess.com"]

[Event "Titled Tuesday Blitz February 15 Late 2022"]
[White "Howell, David W L"]
[Black "Prohorov, Olexandr"]
[WhiteFideId "410608"]
[BlackFideId "14105578"]
[WhiteElo "2559"]
[BlackElo "1993"]
[Result "1-0"]
[Round "11"]
[TimeControl "180+1"]
[Date "2022.02.16"]
[WhiteClock "0:00:08"]
[BlackClock "0:00:12"]

1. e4 {[%clk 0:02:58]}  c5 {[%clk 0:02:59]} 2. Nc3 {[%clk 0:02:57]}  e6 {[%clk 0:02:57]} 3. Nge2 {[%clk 0:02:55]}  Nc6 {[%clk 0:02:56]} 4. g3 {[%clk 0:02:50]}  Nf6 {[%clk 0:02:53]} 5. Bg2 {[%clk 0:02:50]}  d6 {[%clk 0:02:50]} 6. O-O {[%clk 0:02:46]}  Be7 {[%clk 0:02:50]} 7. d4 {[%clk 0:02:38]}  cxd4 {[%clk 0:02:47]} 8. Nxd4 {[%clk 0:02:38]}  O-O {[%clk 0:02:47]} 9. a4 {[%clk 0:02:24]}  Qc7 {[%clk 0:02:46]} 10. Ndb5 {[%clk 0:02:17]}  Qb8 {[%clk 0:02:42]} 11. Be3 {[%clk 0:02:17]}  a6 {[%clk 0:02:41]} 12. Nd4 {[%clk 0:02:17]}  Bd7 {[%clk 0:02:31]} 13. h3 {[%clk 0:02:16]}  Nxd4 {[%clk 0:02:28]} 14. Qxd4 {[%clk 0:02:10]}  Bc6 {[%clk 0:02:18]} 15. a5 {[%clk 0:02:09]}  Nd7 {[%clk 0:02:14]} 16. Rfd1 {[%clk 0:02:00]}  Rd8 {[%clk 0:02:13]} 17. Ne2 {[%clk 0:01:35]}  e5 {[%clk 0:02:04]} 18. Qd2 {[%clk 0:01:28]}  Nc5 {[%clk 0:02:02]} 19. Nc3 {[%clk 0:01:28]}  Ne6 {[%clk 0:01:47]} 20. h4 {[%clk 0:01:17]}  Bf6 {[%clk 0:01:30]} 21. Nd5 {[%clk 0:01:14]}  Bxd5 {[%clk 0:01:30]} 22. Qxd5 {[%clk 0:01:14]}  Qc8 {[%clk 0:01:27]} 23. c3 {[%clk 0:01:13]}  Qc6 {[%clk 0:01:11]} 24. Rd2 {[%clk 0:01:09]}  Be7 {[%clk 0:01:10]} 25. Bb6 {[%clk 0:01:06]}  Rdc8 {[%clk 0:01:00]} 26. Bh3 {[%clk 0:01:06]}  Qxd5 {[%clk 0:00:44]} 27. exd5 {[%clk 0:01:04]}  Nc5 {[%clk 0:00:45]} 28. Bxc8 {[%clk 0:01:03]}  Rxc8 {[%clk 0:00:45]} 29. Bxc5 {[%clk 0:00:57]}  Rxc5 {[%clk 0:00:46]} 30. Ra3 {[%clk 0:00:55]}  Bd8 {[%clk 0:00:42]} 31. b4 {[%clk 0:00:55]}  Rc4 {[%clk 0:00:42]} 32. Kf1 {[%clk 0:00:54]}  f5 {[%clk 0:00:43]} 33. Ke2 {[%clk 0:00:54]}  Kf7 {[%clk 0:00:43]} 34. Kd3 {[%clk 0:00:54]}  Rc8 {[%clk 0:00:43]} 35. f3 {[%clk 0:00:53]}  h6 {[%clk 0:00:33]} 36. Re2 {[%clk 0:00:42]}  Bf6 {[%clk 0:00:29]} 37. c4 {[%clk 0:00:41]}  g5 {[%clk 0:00:23]} 38. hxg5 {[%clk 0:00:40]}  hxg5 {[%clk 0:00:23]} 39. Raa2 {[%clk 0:00:34]}  Kg6 {[%clk 0:00:23]} 40. g4 {[%clk 0:00:31]}  e4+ {[%clk 0:00:19]} 41. fxe4 {[%clk 0:00:31]}  f4 {[%clk 0:00:20]} 42. Rh2 {[%clk 0:00:28]}  Be5 {[%clk 0:00:19]} 43. Rh3 {[%clk 0:00:28]}  Rf8 {[%clk 0:00:16]} 44. Rah2 {[%clk 0:00:26]}  Bg7 {[%clk 0:00:12]} 45. c5 {[%clk 0:00:21]}  Rc8 {[%clk 0:00:10]} 46. Kc4 {[%clk 0:00:11]}  Bf8 {[%clk 0:00:08]} 47. Rh8 {[%clk 0:00:10]}  dxc5 {[%clk 0:00:07]} 48. b5 {[%clk 0:00:06]}  axb5+ {[%clk 0:00:07]} 49. Kxb5 {[%clk 0:00:06]}  c4 {[%clk 0:00:07]} 50. Rc2 {[%clk 0:00:06]}  f3 {[%clk 0:00:07]} 51. Rxc4 {[%clk 0:00:04]}  Re8 {[%clk 0:00:01]} 52. Rh1 {[%clk 0:00:03]}  f2 {[%clk 0:00:02]} 53. Rf1 {[%clk 0:00:03]}  Bg7 {[%clk 0:00:03]} 54. Rxf2 {[%clk 0:00:03]}  Be5 {[%clk 0:00:04]} 55. Rf5 {[%clk 0:00:03]}  Ra8 {[%clk 0:00:04]} 56. Kb6 {[%clk 0:00:04]}  Ra6+ {[%clk 0:00:05]} 57. Kb5 {[%clk 0:00:04]}  Rd6 {[%clk 0:00:04]} 58. Ra4 {[%clk 0:00:05]}  Rd7 {[%clk 0:00:05]} 59. a6 {[%clk 0:00:05]}  Re7 {[%clk 0:00:06]} 60. axb7 {[%clk 0:00:05]}  Bb8 {[%clk 0:00:06]} 61. Kc6 {[%clk 0:00:06]}  Rc7+ {[%clk 0:00:07]} 62. Kb6 {[%clk 0:00:06]}  Kg7 {[%clk 0:00:07]} 63. Rb4 {[%clk 0:00:06]}  Kg6 {[%clk 0:00:08]} 64. Rb5 {[%clk 0:00:07]}  Kg7 {[%clk 0:00:09]} 65. Rc5 {[%clk 0:00:07]}  Kg6 {[%clk 0:00:10]} 66. Rxc7 {[%clk 0:00:07]}  Bxc7+ {[%clk 0:00:10]} 67. Kxc7 {[%clk 0:00:08]}  Kg7 {[%clk 0:00:11]} 68. b8=Q {[%clk 0:00:08]}  Kg6 {[%clk 0:00:12]} 69. Qg8+ {[%clk 0:00:08]} 1-0


[Site "https://www.chess.com"]

[Event "Titled Tuesday Blitz February 15 Late 2022"]
[White "Iljin, Timofey"]
[Black "Kim, Sergey"]
[WhiteFideId "14110180"]
[BlackFideId "13700570"]
[WhiteElo "2396"]
[BlackElo "2617"]
[Result "0-1"]
[Round "11"]
[TimeControl "180+1"]
[Date "2022.02.15"]
[WhiteClock "0:00:01"]
[BlackClock "0:00:14"]

1. d4 {[%clk 0:03:00]}  Nf6 {[%clk 0:02:59]} 2. c4 {[%clk 0:03:01]}  g6 {[%clk 0:02:59]} 3. Nc3 {[%clk 0:03:01]}  Bg7 {[%clk 0:02:59]} 4. e4 {[%clk 0:03:01]}  d6 {[%clk 0:03:00]} 5. f4 {[%clk 0:03:02]}  O-O {[%clk 0:03:00]} 6. Nf3 {[%clk 0:03:02]}  c5 {[%clk 0:03:00]} 7. d5 {[%clk 0:03:03]}  b5 {[%clk 0:03:00]} 8. cxb5 {[%clk 0:03:02]}  a6 {[%clk 0:02:59]} 9. a4 {[%clk 0:03:02]}  Qa5 {[%clk 0:02:59]} 10. Bd2 {[%clk 0:03:02]}  Qb4 {[%clk 0:02:59]} 11. Bd3 {[%clk 0:03:02]}  c4 {[%clk 0:02:59]} 12. Bc2 {[%clk 0:03:01]}  Qc5 {[%clk 0:02:58]} 13. Qe2 {[%clk 0:02:55]}  Nbd7 {[%clk 0:02:37]} 14. e5 {[%clk 0:02:47]}  dxe5 {[%clk 0:02:28]} 15. fxe5 {[%clk 0:02:48]}  Ng4 {[%clk 0:02:27]} 16. e6 {[%clk 0:02:45]}  Nde5 {[%clk 0:02:14]} 17. Nxe5 {[%clk 0:02:22]}  Nxe5 {[%clk 0:02:12]} 18. Be3 {[%clk 0:02:15]}  Qb4 {[%clk 0:02:09]} 19. O-O {[%clk 0:02:02]}  Qxb2 {[%clk 0:01:39]} 20. Ne4 {[%clk 0:02:01]}  Nd3 {[%clk 0:01:27]} 21. Rab1 {[%clk 0:01:31]}  Qe5 {[%clk 0:01:23]} 22. exf7+ {[%clk 0:01:32]}  Rxf7 {[%clk 0:01:16]} 23. Rxf7 {[%clk 0:01:30]}  Kxf7 {[%clk 0:01:16]} 24. Ng5+ {[%clk 0:00:18]}  Kg8 {[%clk 0:01:12]} 25. Qf3 {[%clk 0:00:13]}  Bf5 {[%clk 0:00:55]} 26. d6 {[%clk 0:00:13]}  Rf8 {[%clk 0:00:49]} 27. dxe7 {[%clk 0:00:13]}  Qxe7 {[%clk 0:00:47]} 28. Qd5+ {[%clk 0:00:10]}  Kh8 {[%clk 0:00:47]} 29. Bd4 {[%clk 0:00:10]}  Qxg5 {[%clk 0:00:42]} 30. Bxg7+ {[%clk 0:00:09]}  Kxg7 {[%clk 0:00:41]} 31. Qd4+ {[%clk 0:00:10]}  Qf6 {[%clk 0:00:40]} 32. Qxf6+ {[%clk 0:00:08]}  Kxf6 {[%clk 0:00:36]} 33. bxa6 {[%clk 0:00:07]}  Ra8 {[%clk 0:00:34]} 34. Rb6+ {[%clk 0:00:07]}  Ke5 {[%clk 0:00:33]} 35. Rc6 {[%clk 0:00:03]}  Kd4 {[%clk 0:00:32]} 36. g4 {[%clk 0:00:02]}  Bxg4 {[%clk 0:00:27]} 37. h3 {[%clk 0:00:02]}  Bf5 {[%clk 0:00:27]} 38. Rc7 {[%clk 0:00:02]}  Rxa6 {[%clk 0:00:26]} 39. Rxh7 {[%clk 0:00:03]}  Kc3 {[%clk 0:00:22]} 40. Bd1 {[%clk 0:00:02]}  Rd6 {[%clk 0:00:20]} 41. Bf3 {[%clk 0:00:03]}  Ne5 {[%clk 0:00:19]} 42. a5 {[%clk 0:00:04]}  Nxf3+ {[%clk 0:00:19]} 43. Kf2 {[%clk 0:00:05]}  Nd4 {[%clk 0:00:19]} 44. Rb7 {[%clk 0:00:05]}  Ra6 {[%clk 0:00:18]} 45. Ke3 {[%clk 0:00:04]}  Rxa5 {[%clk 0:00:18]} 46. Rc7 {[%clk 0:00:04]}  Nc2+ {[%clk 0:00:18]} 47. Kf4 {[%clk 0:00:04]}  Rd5 {[%clk 0:00:18]} 48. h4 {[%clk 0:00:05]}  Rd4+ {[%clk 0:00:18]} 49. Kg5 {[%clk 0:00:05]}  Ne3 {[%clk 0:00:17]} 50. h5 {[%clk 0:00:05]}  Rg4+ {[%clk 0:00:17]} 51. Kh6 {[%clk 0:00:04]}  gxh5 {[%clk 0:00:17]} 52. Kxh5 {[%clk 0:00:05]}  Rg2 {[%clk 0:00:16]} 53. Kh4 {[%clk 0:00:04]}  Bd3 {[%clk 0:00:16]} 54. Kh3 {[%clk 0:00:04]}  Kd2 {[%clk 0:00:16]} 55. Re7 {[%clk 0:00:03]}  Rg8 {[%clk 0:00:15]} 56. Kh4 {[%clk 0:00:02]}  c3 {[%clk 0:00:16]} 57. Rc7 {[%clk 0:00:03]}  c2 {[%clk 0:00:16]} 58. Kh5 {[%clk 0:00:04]}  c1=Q {[%clk 0:00:16]} 59. Rxc1 {[%clk 0:00:03]}  Kxc1 {[%clk 0:00:16]} 60. Kh6 {[%clk 0:00:04]}  Rg4 {[%clk 0:00:14]} 61. Kh5 {[%clk 0:00:03]}  Kd2 {[%clk 0:00:14]} 62. Kh6 {[%clk 0:00:03]}  Kc3 {[%clk 0:00:14]} 63. Kh5 {[%clk 0:00:04]}  Kd4 {[%clk 0:00:14]} 64. Kh6 {[%clk 0:00:04]}  Ke5 {[%clk 0:00:14]} 65. Kh5 {[%clk 0:00:05]}  Kf6 {[%clk 0:00:14]} 66. Kh6 {[%clk 0:00:01]}  Rh4# {[%clk 0:00:14]} 0-1


[Site "https://www.chess.com"]

[Event "Titled Tuesday Blitz February 15 Late 2022"]
[White "KND2020"]
[Black "Medeiros Jr, Francisco De Assis"]
[BlackFideId "2114267"]
[WhiteElo "2474"]
[BlackElo "1998"]
[Result "1-0"]
[Round "11"]
[TimeControl "180+1"]
[Date "2022.02.16"]
[WhiteClock "0:00:45"]
[BlackClock "0:00:13"]

1. e4 {[%clk 0:03:00]}  c6 {[%clk 0:02:58]} 2. d4 {[%clk 0:03:01]}  d5 {[%clk 0:02:59]} 3. e5 {[%clk 0:03:01]}  g6 {[%clk 0:02:59]} 4. f4 {[%clk 0:03:01]}  h5 {[%clk 0:02:59]} 5. Nf3 {[%clk 0:03:01]}  Bg4 {[%clk 0:02:59]} 6. h3 {[%clk 0:03:01]}  Bxf3 {[%clk 0:02:59]} 7. Qxf3 {[%clk 0:03:02]}  h4 {[%clk 0:02:48]} 8. f5 {[%clk 0:02:58]}  gxf5 {[%clk 0:02:43]} 9. Qxf5 {[%clk 0:02:59]}  e6 {[%clk 0:02:44]} 10. Qf3 {[%clk 0:02:58]}  Qb6 {[%clk 0:02:43]} 11. c3 {[%clk 0:02:52]}  c5 {[%clk 0:02:42]} 12. Bd3 {[%clk 0:02:36]}  cxd4 {[%clk 0:02:38]} 13. Rf1 {[%clk 0:02:36]}  Qc7 {[%clk 0:02:24]} 14. Bf4 {[%clk 0:02:29]}  Nc6 {[%clk 0:02:22]} 15. Qe2 {[%clk 0:02:17]}  O-O-O {[%clk 0:02:15]} 16. cxd4 {[%clk 0:02:06]}  Nxd4 {[%clk 0:02:06]} 17. Qd2 {[%clk 0:02:05]}  Nc6 {[%clk 0:01:57]} 18. Nc3 {[%clk 0:01:59]}  Bb4 {[%clk 0:01:56]} 19. a3 {[%clk 0:01:57]}  Bxc3 {[%clk 0:01:42]} 20. Qxc3 {[%clk 0:01:58]}  Qb6 {[%clk 0:01:36]} 21. Rc1 {[%clk 0:01:42]}  Kb8 {[%clk 0:01:34]} 22. b4 {[%clk 0:01:41]}  Nge7 {[%clk 0:01:20]} 23. b5 {[%clk 0:01:28]}  d4 {[%clk 0:01:01]} 24. Qc5 {[%clk 0:01:17]}  Qxc5 {[%clk 0:00:57]} 25. Rxc5 {[%clk 0:01:18]}  Na5 {[%clk 0:00:56]} 26. Bg5 {[%clk 0:01:18]}  Rd7 {[%clk 0:00:51]} 27. Rxf7 {[%clk 0:01:17]}  Re8 {[%clk 0:00:40]} 28. Bxh4 {[%clk 0:01:16]}  b6 {[%clk 0:00:29]} 29. Rc2 {[%clk 0:01:14]}  Nb3 {[%clk 0:00:26]} 30. Rg7 {[%clk 0:00:58]}  Nc5 {[%clk 0:00:27]} 31. Kd2 {[%clk 0:00:51]}  Nd5 {[%clk 0:00:12]} 32. Rxd7 {[%clk 0:00:49]}  Nxd7 {[%clk 0:00:13]} 33. g4 {[%clk 0:00:45]}  Nxe5 {[%clk 0:00:13]} 34. Bg3 {[%clk 0:00:45]} 1-0


[Site "https://www.chess.com"]

[Event "Titled Tuesday Blitz February 15 Late 2022"]
[White "Karttunen, Mika"]
[Black "Moral Garcia, Serafin"]
[WhiteFideId "502081"]
[BlackFideId "2201925"]
[WhiteElo "2343"]
[BlackElo "2228"]
[Result "1-0"]
[Round "11"]
[TimeControl "180+1"]
[Date "2022.02.16"]
[WhiteClock "0:00:09"]
[BlackClock "0:00:29"]

1. e4 {[%clk 0:03:00]}  e5 {[%clk 0:02:59]} 2. Nf3 {[%clk 0:03:00]}  Nc6 {[%clk 0:02:58]} 3. Bc4 {[%clk 0:02:59]}  Bc5 {[%clk 0:02:58]} 4. b4 {[%clk 0:02:59]}  Bb6 {[%clk 0:02:57]} 5. b5 {[%clk 0:02:55]}  Nd4 {[%clk 0:02:55]} 6. c3 {[%clk 0:02:44]}  Nxf3+ {[%clk 0:02:54]} 7. Qxf3 {[%clk 0:02:45]}  Nf6 {[%clk 0:02:54]} 8. d4 {[%clk 0:02:42]}  d6 {[%clk 0:02:51]} 9. Bg5 {[%clk 0:02:41]}  exd4 {[%clk 0:02:48]} 10. O-O {[%clk 0:02:40]}  h6 {[%clk 0:02:43]} 11. Bh4 {[%clk 0:02:32]}  g5 {[%clk 0:02:43]} 12. Bg3 {[%clk 0:02:32]}  O-O {[%clk 0:02:31]} 13. h3 {[%clk 0:02:19]}  Be6 {[%clk 0:02:29]} 14. Bd3 {[%clk 0:02:18]}  Nd7 {[%clk 0:02:21]} 15. e5 {[%clk 0:02:02]}  dxe5 {[%clk 0:01:55]} 16. Re1 {[%clk 0:01:33]}  dxc3 {[%clk 0:01:16]} 17. Nxc3 {[%clk 0:01:29]}  Bd4 {[%clk 0:01:16]} 18. Rac1 {[%clk 0:01:24]}  f5 {[%clk 0:01:11]} 19. Qxb7 {[%clk 0:00:40]}  Nc5 {[%clk 0:01:08]} 20. Qc6 {[%clk 0:00:35]}  Qd6 {[%clk 0:01:03]} 21. Bb1 {[%clk 0:00:16]}  f4 {[%clk 0:00:42]} 22. Bh2 {[%clk 0:00:16]}  Qxc6 {[%clk 0:00:36]} 23. bxc6 {[%clk 0:00:16]}  Rab8 {[%clk 0:00:29]} 24. Re2 {[%clk 0:00:16]}  Bxc3 {[%clk 0:00:29]} 25. Rec2 {[%clk 0:00:09]} 1-0


[Site "https://www.chess.com"]